[Event "*** SCC Grand Prix: Titled Tuesday Blitz"]
[Site "Chess.com"]
[Date "2020.06.23"]
[Round "8"]
[White "PredragNikac"]
[Black "IwkooO"]
[Result "0-1"]
[WhiteElo "2231"]
[BlackElo "2530"]
[TimeControl "180+1"]
[EndTime "11:36:36 PDT"]
[Termination "IwkooO won by resignation"]

1. d4 {[%clk 0:03:00.9]} 1... Nf6 {[%clk 0:02:53.6]} 2. Nc3 {[%clk 0:03:01.8]}
2... e6 {[%clk 0:02:50.4]} 3. Bg5 {[%clk 0:03:01.7]} 3... d5 {[%clk 0:02:48.7]}
4. e3 {[%clk 0:03:01.2]} 4... h6 {[%clk 0:02:46]} 5. Bh4 {[%clk 0:03:00.3]} 5...
c5 {[%clk 0:02:45.9]} 6. Nf3 {[%clk 0:02:57.1]} 6... Nc6 {[%clk 0:02:43.8]} 7.
Be2 {[%clk 0:02:56.3]} 7... Bd7 {[%clk 0:02:40.4]} 8. O-O {[%clk 0:02:55.9]}
8... Be7 {[%clk 0:02:38.6]} 9. a4 {[%clk 0:02:55.3]} 9... Ne4 {[%clk 0:02:34.3]}
10. Bxe7 {[%clk 0:02:54.1]} 10... Qxe7 {[%clk 0:02:34.7]} 11. Nxe4 {[%clk
0:02:53]} 11... dxe4 {[%clk 0:02:35.1]} 12. Ne5 {[%clk 0:02:48.3]} 12... Nxe5
{[%clk 0:02:35]} 13. dxe5 {[%clk 0:02:48]} 13... Rd8 {[%clk 0:02:20.1]} 14. Qe1
{[%clk 0:02:39.3]} 14... Bc6 {[%clk 0:02:15.9]} 15. Qc3 {[%clk 0:02:38.4]} 15...
O-O {[%clk 0:02:15.7]} 16. a5 {[%clk 0:02:34.9]} 16... Rd7 {[%clk 0:02:11.2]}
17. h3 {[%clk 0:02:26.4]} 17... Rfd8 {[%clk 0:02:10.5]} 18. Rfd1 {[%clk
0:02:25.4]} 18... Rxd1+ {[%clk 0:02:06.1]} 19. Rxd1 {[%clk 0:02:24.6]} 19...
Rxd1+ {[%clk 0:02:06.5]} 20. Bxd1 {[%clk 0:02:23.4]} 20... Qd7 {[%clk
0:02:05.5]} 21. Be2 {[%clk 0:02:22.2]} 21... Qd5 {[%clk 0:02:03.6]} 22. Bc4
{[%clk 0:02:16.8]} 22... Qd1+ {[%clk 0:02:03.2]} 23. Kh2 {[%clk 0:02:16.3]}
23... g5 {[%clk 0:01:37.3]} 24. g3 {[%clk 0:02:09.6]} 24... Kg7 {[%clk
0:01:26.9]} 25. Kg2 {[%clk 0:01:38.8]} 25... h5 {[%clk 0:01:25.2]} 26. Bf1
{[%clk 0:01:37]} 26... Qf3+ {[%clk 0:01:15.8]} 27. Kg1 {[%clk 0:01:36.4]} 27...
h4 {[%clk 0:00:39.7]} 28. g4 {[%clk 0:01:30]} 28... Qd1 {[%clk 0:00:34.4]} 29.
Qxc5 {[%clk 0:01:21.1]} 29... a6 {[%clk 0:00:34.6]} 30. c4 {[%clk 0:01:17]}
30... Ba4 {[%clk 0:00:13.6]} 31. Qd4 {[%clk 0:00:55.3]} 31... Qb1 {[%clk
0:00:13.7]} 32. Kg2 {[%clk 0:00:50.3]} 32... Bc2 {[%clk 0:00:13.8]} 33. Qd8
{[%clk 0:00:42.3]} 33... Bd3 {[%clk 0:00:12.3]} 34. Qxg5+ {[%clk 0:00:40.9]}
34... Kf8 {[%clk 0:00:12.6]} 35. Qd8+ {[%clk 0:00:38]} 35... Kg7 {[%clk
0:00:12.6]} 36. Bxd3 {[%clk 0:00:37.8]} 36... exd3 {[%clk 0:00:13.5]} 37. g5
{[%clk 0:00:27.1]} 37... Qd1 {[%clk 0:00:05.7]} 38. Qf6+ {[%clk 0:00:25.1]}
38... Kg8 {[%clk 0:00:06.1]} 39. g6 {[%clk 0:00:26]} 39... fxg6 {[%clk 0:00:07]}
40. Qxg6+ {[%clk 0:00:25.9]} 40... Kh8 {[%clk 0:00:07.5]} 41. Qh6+ {[%clk
0:00:25.3]} 41... Kg8 {[%clk 0:00:07.8]} 42. Qxe6+ {[%clk 0:00:25.2]} 42... Kh7
{[%clk 0:00:07.7]} 43. Qf7+ {[%clk 0:00:24.9]} 43... Kh6 {[%clk 0:00:08.3]} 44.
Qf6+ {[%clk 0:00:24]} 44... Kh7 {[%clk 0:00:08.4]} 45. Qxh4+ {[%clk 0:00:23.6]}
45... Kg7 {[%clk 0:00:07.7]} 46. Qf6+ {[%clk 0:00:23.3]} 46... Kh7 {[%clk
0:00:07.9]} 47. e6 {[%clk 0:00:23.2]} 47... d2 {[%clk 0:00:08]} 48. e7 {[%clk
0:00:23]} 48... Qh5 {[%clk 0:00:07.1]} 49. e8=Q {[%clk 0:00:18.4]} 49... Qxe8
{[%clk 0:00:06.8]} 50. Qf5+ {[%clk 0:00:18.2]} 50... Kh8 {[%clk 0:00:04.6]} 51.
Qf6+ {[%clk 0:00:16]} 51... Kh7 {[%clk 0:00:03.7]} 52. Qd4 {[%clk 0:00:16.9]}
52... Qg6+ {[%clk 0:00:03.6]} 53. Kf1 {[%clk 0:00:16.9]} 53... Qb1+ {[%clk
0:00:03.5]} 54. Kg2 {[%clk 0:00:16.7]} 54... d1=Q {[%clk 0:00:03.3]} 55. Qh4+
{[%clk 0:00:14.7]} 55... Kg7 {[%clk 0:00:03.2]} 56. Qe7+ {[%clk 0:00:13.5]}
56... Kh6 {[%clk 0:00:03.9]} 57. Qf8+ {[%clk 0:00:12.3]} 57... Kg5 {[%clk
0:00:02.8]} 58. Qg7+ {[%clk 0:00:11.8]} 58... Qg6 {[%clk 0:00:02.4]} 59. Qe5+
{[%clk 0:00:10.8]} 59... Kh6+ {[%clk 0:00:02.6]} 60. Qg3 {[%clk 0:00:09.9]}
60... Qxg3+ {[%clk 0:00:02.6]} 61. Kxg3 {[%clk 0:00:10.8]} 61... Qc2 {[%clk
0:00:03]} 62. b3 {[%clk 0:00:10.4]} 62... Qxb3 {[%clk 0:00:03.3]} 0-1

[Event "*** SCC Grand Prix: Titled Tuesday Blitz"]
[Site "Chess.com"]
[Date "2020.06.23"]
[Round "8"]
[White "peixe64"]
[Black "Stormeman100100"]
[Result "1-0"]
[WhiteElo "2367"]
[BlackElo "2459"]
[TimeControl "180+1"]
[EndTime "11:36:36 PDT"]
[Termination "peixe64 won by resignation"]

1. d4 {[%clk 0:03:00.9]} 1... Nf6 {[%clk 0:02:57.6]} 2. c4 {[%clk 0:03:01.2]}
2... e6 {[%clk 0:02:57.9]} 3. Nc3 {[%clk 0:03:01.2]} 3... d5 {[%clk 0:02:57.2]}
4. Bg5 {[%clk 0:03:00.1]} 4... Be7 {[%clk 0:02:56.4]} 5. Nf3 {[%clk 0:03:00.7]}
5... O-O {[%clk 0:02:55.8]} 6. e3 {[%clk 0:03:01.3]} 6... Nbd7 {[%clk
0:02:55.3]} 7. Bd3 {[%clk 0:03:00.8]} 7... h6 {[%clk 0:02:55.5]} 8. Bh4 {[%clk
0:03:00.6]} 8... b6 {[%clk 0:02:55.9]} 9. O-O {[%clk 0:03:00.2]} 9... Bb7 {[%clk
0:02:56.2]} 10. cxd5 {[%clk 0:02:59.6]} 10... Nxd5 {[%clk 0:02:54.8]} 11. Bg3
{[%clk 0:02:59.7]} 11... c5 {[%clk 0:02:53.7]} 12. Qe2 {[%clk 0:02:48.4]} 12...
Nxc3 {[%clk 0:02:43.3]} 13. bxc3 {[%clk 0:02:48.3]} 13... Nf6 {[%clk 0:02:44.2]}
14. e4 {[%clk 0:02:45.1]} 14... cxd4 {[%clk 0:02:42.5]} 15. cxd4 {[%clk
0:02:45.3]} 15... Nh5 {[%clk 0:02:37.1]} 16. Rad1 {[%clk 0:02:30.5]} 16... Nxg3
{[%clk 0:02:35.4]} 17. hxg3 {[%clk 0:02:31.1]} 17... Rc8 {[%clk 0:02:30.7]} 18.
Ba6 {[%clk 0:02:28.2]} 18... Qc7 {[%clk 0:02:28.7]} 19. Bxb7 {[%clk 0:02:26]}
19... Qxb7 {[%clk 0:02:29.6]} 20. d5 {[%clk 0:02:25.8]} 20... exd5 {[%clk
0:02:18.6]} 21. exd5 {[%clk 0:02:26.7]} 21... Rfd8 {[%clk 0:02:13.6]} 22. Rfe1
{[%clk 0:02:19.1]} 22... Bf6 {[%clk 0:02:07.4]} 23. d6 {[%clk 0:02:02.4]} 23...
Rd7 {[%clk 0:02:02.3]} 24. Rd3 {[%clk 0:01:47.8]} 24... Rcd8 {[%clk 0:02:01.2]}
25. Red1 {[%clk 0:01:46.8]} 25... Qc6 {[%clk 0:01:49.6]} 26. Qd2 {[%clk
0:01:39.8]} 26... Rc8 {[%clk 0:01:45.8]} 27. Nh2 {[%clk 0:01:31.9]} 27... Bg5
{[%clk 0:01:37.8]} 28. f4 {[%clk 0:01:23.5]} 28... Bf6 {[%clk 0:01:36.5]} 29.
Ng4 {[%clk 0:01:22.2]} 29... Bc3 {[%clk 0:01:32.2]} 30. Qe2 {[%clk 0:01:07.2]}
30... Rcd8 {[%clk 0:01:27.8]} 31. Qf3 {[%clk 0:00:27.8]} 31... Qxf3 {[%clk
0:01:23]} 32. gxf3 {[%clk 0:00:27.3]} 32... Bb4 {[%clk 0:01:23.2]} 33. Ne5
{[%clk 0:00:24.8]} 33... Rxd6 {[%clk 0:01:21.7]} 34. Rxd6 {[%clk 0:00:24.3]}
34... Rxd6 {[%clk 0:01:22.6]} 35. Rc1 {[%clk 0:00:24.8]} 35... Bc5+ {[%clk
0:01:20.9]} 36. Kg2 {[%clk 0:00:23]} 36... Rd2+ {[%clk 0:01:20.9]} 37. Kh3
{[%clk 0:00:23.2]} 37... Rxa2 {[%clk 0:01:18.3]} 38. Rd1 {[%clk 0:00:22.2]}
38... Be7 {[%clk 0:00:42.5]} 39. Rd7 {[%clk 0:00:20.8]} 39... Bf6 {[%clk
0:00:42.4]} 40. Nxf7 {[%clk 0:00:19.2]} 40... b5 {[%clk 0:00:40.2]} 41. g4
{[%clk 0:00:16.8]} 41... b4 {[%clk 0:00:35.6]} 42. g5 {[%clk 0:00:17.2]} 42...
hxg5 {[%clk 0:00:29.5]} 43. fxg5 {[%clk 0:00:17.1]} 43... Bc3 {[%clk 0:00:20.2]}
44. g6 {[%clk 0:00:14.6]} 44... Kf8 {[%clk 0:00:19.7]} 45. Nd6 {[%clk 0:00:09]}
45... Be5 {[%clk 0:00:13]} 46. Rf7+ {[%clk 0:00:07.9]} 46... Kg8 {[%clk
0:00:12.5]} 47. Nf5 {[%clk 0:00:06.8]} 47... Bf6 {[%clk 0:00:06.3]} 48. Rb7
{[%clk 0:00:05.8]} 48... Rd2 {[%clk 0:00:05.3]} 49. Rxb4 {[%clk 0:00:04.4]}
49... Rd8 {[%clk 0:00:04.2]} 50. Rb7 {[%clk 0:00:04.2]} 50... Ra8 {[%clk
0:00:04]} 51. Rb4 {[%clk 0:00:01.7]} 51... a5 {[%clk 0:00:04.2]} 52. Ra4 {[%clk
0:00:02.6]} 52... Bc3 {[%clk 0:00:04.1]} 53. Nd6 {[%clk 0:00:03.5]} 53... Bb4
{[%clk 0:00:03.9]} 54. Nc4 {[%clk 0:00:04.4]} 54... Ra7 {[%clk 0:00:02.4]} 55.
Kg4 {[%clk 0:00:05]} 55... Kf8 {[%clk 0:00:02.4]} 56. f4 {[%clk 0:00:05.5]}
56... Ke7 {[%clk 0:00:03]} 57. f5 {[%clk 0:00:06.1]} 57... Kf6 {[%clk
0:00:03.9]} 58. Ne3 {[%clk 0:00:05.4]} 58... Rc7 {[%clk 0:00:04.3]} 59. Nd5+
{[%clk 0:00:06]} 59... Ke5 {[%clk 0:00:04.8]} 60. Nxc7 {[%clk 0:00:06.9]} 60...
Ke4 {[%clk 0:00:05.2]} 61. Na6 {[%clk 0:00:07.8]} 61... Ke5 {[%clk 0:00:04]} 62.
Nxb4 {[%clk 0:00:08.7]} 62... axb4 {[%clk 0:00:04.6]} 63. Rxb4 {[%clk
0:00:09.6]} 63... Kf6 {[%clk 0:00:05.3]} 64. Rf4 {[%clk 0:00:10.2]} 64... Ke5
{[%clk 0:00:06.2]} 65. Kg5 {[%clk 0:00:10.9]} 65... Kd5 {[%clk 0:00:05.9]} 66.
f6 {[%clk 0:00:11.8]} 66... gxf6+ {[%clk 0:00:06.5]} 67. Rxf6 {[%clk 0:00:12.7]}
67... Ke5 {[%clk 0:00:07]} 68. g7 {[%clk 0:00:13.6]} 68... Kd5 {[%clk
0:00:07.9]} 69. g8=Q+ {[%clk 0:00:14.5]} 69... Ke5 {[%clk 0:00:08.8]} 70. Qe8+
{[%clk 0:00:14.9]} 1-0

[Event "*** SCC Grand Prix: Titled Tuesday Blitz"]
[Site "Chess.com"]
[Date "2020.06.23"]
[Round "8"]
[White "VincentKeymer"]
[Black "RobertoJBM"]
[Result "0-1"]
[WhiteElo "2817"]
[BlackElo "2677"]
[TimeControl "180+1"]
[EndTime "11:36:41 PDT"]
[Termination "RobertoJBM won by resignation"]

1. Nf3 {[%clk 0:03:00.9]} 1... d5 {[%clk 0:02:58.9]} 2. e3 {[%clk 0:03:00.5]}
2... c6 {[%clk 0:02:55.8]} 3. c4 {[%clk 0:02:59.9]} 3... Nf6 {[%clk 0:02:54.7]}
4. Nc3 {[%clk 0:03:00.3]} 4... a6 {[%clk 0:02:52.7]} 5. b3 {[%clk 0:02:59.7]}
5... Bf5 {[%clk 0:02:51.5]} 6. Be2 {[%clk 0:02:56.8]} 6... h6 {[%clk 0:02:50.4]}
7. Bb2 {[%clk 0:02:56.4]} 7... e6 {[%clk 0:02:50.3]} 8. O-O {[%clk 0:02:56.3]}
8... Nbd7 {[%clk 0:02:49.1]} 9. d4 {[%clk 0:02:53.8]} 9... Bd6 {[%clk
0:02:48.4]} 10. Re1 {[%clk 0:02:52.2]} 10... Qe7 {[%clk 0:02:46.8]} 11. Bd3
{[%clk 0:02:51.1]} 11... Bxd3 {[%clk 0:02:46.2]} 12. Qxd3 {[%clk 0:02:52]} 12...
Ba3 {[%clk 0:02:43.6]} 13. Bxa3 {[%clk 0:02:47.1]} 13... Qxa3 {[%clk 0:02:44.5]}
14. Ne5 {[%clk 0:02:33.4]} 14... O-O {[%clk 0:02:34.9]} 15. e4 {[%clk 0:02:33]}
15... Nxe5 {[%clk 0:02:31]} 16. dxe5 {[%clk 0:02:32.3]} 16... Nxe4 {[%clk
0:02:30.2]} 17. Nxe4 {[%clk 0:02:28.1]} 17... dxe4 {[%clk 0:02:31.1]} 18. Qxe4
{[%clk 0:02:25.1]} 18... Rad8 {[%clk 0:02:31.3]} 19. h4 {[%clk 0:02:05.2]} 19...
Rd2 {[%clk 0:02:20]} 20. Re3 {[%clk 0:02:05.2]} 20... Rfd8 {[%clk 0:02:18.2]}
21. Rg3 {[%clk 0:02:02.3]} 21... Qb2 {[%clk 0:02:10]} 22. Rf1 {[%clk 0:01:51.7]}
22... Qd4 {[%clk 0:02:03.7]} 23. Qf3 {[%clk 0:01:32.9]} 23... Rd3 {[%clk
0:01:28.9]} 24. Qg4 {[%clk 0:01:17.5]} 24... Qxg4 {[%clk 0:01:22.7]} 25. Rxg4
{[%clk 0:01:18.4]} 25... Rd2 {[%clk 0:01:21.4]} 26. f4 {[%clk 0:01:16.6]} 26...
R8d4 {[%clk 0:01:16.3]} 27. h5 {[%clk 0:00:54.8]} 27... Rxa2 {[%clk 0:01:15.7]}
28. Rf3 {[%clk 0:00:48.1]} 28... Kf8 {[%clk 0:00:59.1]} 29. Kh2 {[%clk
0:00:36.4]} 29... a5 {[%clk 0:00:46.5]} 30. Rfg3 {[%clk 0:00:31]} 30... Ke7
{[%clk 0:00:28.3]} 31. Rxg7 {[%clk 0:00:20.7]} 31... Rxf4 {[%clk 0:00:28.5]} 32.
Rh7 {[%clk 0:00:21.3]} 32... Rh4+ {[%clk 0:00:28.2]} 33. Rh3 {[%clk 0:00:21]}
33... Rxh3+ {[%clk 0:00:28.3]} 34. Kxh3 {[%clk 0:00:21.9]} 34... Rb2 {[%clk
0:00:28.4]} 35. Rxh6 {[%clk 0:00:21.4]} 35... Rxb3+ {[%clk 0:00:29.3]} 36. g3
{[%clk 0:00:21.9]} 36... Kf8 {[%clk 0:00:24.8]} 37. Rh8+ {[%clk 0:00:20.2]}
37... Kg7 {[%clk 0:00:25.3]} 38. Ra8 {[%clk 0:00:20.7]} 38... Rc3 {[%clk
0:00:21]} 39. Rxa5 {[%clk 0:00:20.2]} 39... Rxc4 {[%clk 0:00:21.2]} 40. Ra7
{[%clk 0:00:21.1]} 40... Rb4 {[%clk 0:00:21.3]} 41. g4 {[%clk 0:00:21.4]} 41...
Kh6 {[%clk 0:00:21]} 42. Kh4 {[%clk 0:00:21.6]} 42... c5 {[%clk 0:00:21.1]} 43.
Ra8 {[%clk 0:00:21]} 43... Kg7 {[%clk 0:00:16.9]} 44. Kg5 {[%clk 0:00:19.6]}
44... Re4 {[%clk 0:00:16.9]} 45. h6+ {[%clk 0:00:19.3]} 45... Kh7 {[%clk
0:00:17.4]} 46. Kf6 {[%clk 0:00:19.1]} 46... Rf4+ {[%clk 0:00:17.5]} 47. Ke7
{[%clk 0:00:19.2]} 47... Kxh6 {[%clk 0:00:17.2]} 48. Rh8+ {[%clk 0:00:18.6]}
48... Kg7 {[%clk 0:00:17.5]} 49. Rc8 {[%clk 0:00:17.8]} 49... Rxg4 {[%clk
0:00:17.9]} 50. Rxc5 {[%clk 0:00:17.9]} 50... Rd4 {[%clk 0:00:18.4]} 51. Rb5
{[%clk 0:00:17.7]} 51... Rd5 {[%clk 0:00:19]} 52. Rxb7 {[%clk 0:00:17.6]} 52...
Rxe5 {[%clk 0:00:19.6]} 53. Ke8 {[%clk 0:00:17.9]} 53... Rd5 {[%clk 0:00:20.5]}
54. Rxf7+ {[%clk 0:00:17.2]} 54... Kg6 {[%clk 0:00:21.4]} 55. Rf1 {[%clk
0:00:15.9]} 55... e5 {[%clk 0:00:21]} 56. Ke7 {[%clk 0:00:16.4]} 56... e4 {[%clk
0:00:21.4]} 57. Ke6 {[%clk 0:00:16.9]} 57... Ra5 {[%clk 0:00:19.9]} 58. Re1
{[%clk 0:00:16.7]} 58... Ra8 {[%clk 0:00:17.7]} 59. Rg1+ {[%clk 0:00:16.6]}
59... Kh5 {[%clk 0:00:17.7]} 60. Kf5 {[%clk 0:00:16.2]} 60... Rf8+ {[%clk
0:00:16]} 61. Kxe4 {[%clk 0:00:16.3]} 61... Rf7 {[%clk 0:00:16]} 62. Ke5 {[%clk
0:00:15.6]} 62... Kh6 {[%clk 0:00:14.2]} 63. Ke6 {[%clk 0:00:14.8]} 63... Rf2
{[%clk 0:00:14.1]} 64. Rg3 {[%clk 0:00:14.3]} 64... Kh5 {[%clk 0:00:14.3]} 65.
Rg8 {[%clk 0:00:14]} 65... Kh4 {[%clk 0:00:14.3]} 66. Ke5 {[%clk 0:00:14.4]}
66... Kh3 {[%clk 0:00:14.1]} 67. Re8 {[%clk 0:00:14.2]} 67... Re2+ {[%clk
0:00:13.2]} 68. Kf6 {[%clk 0:00:13.4]} 68... Rxe8 {[%clk 0:00:14.1]} 0-1

[Event "*** SCC Grand Prix: Titled Tuesday Blitz"]
[Site "Chess.com"]
[Date "2020.06.23"]
[Round "8"]
[White "Beca95"]
[Black "Angry_Twin"]
[Result "0-1"]
[WhiteElo "2885"]
[BlackElo "2820"]
[TimeControl "180+1"]
[EndTime "11:36:42 PDT"]
[Termination "Angry_Twin won on time"]

1. d4 {[%clk 0:03:00.9]} 1... Nf6 {[%clk 0:02:59.7]} 2. c4 {[%clk 0:02:59.4]}
2... e6 {[%clk 0:02:58.5]} 3. Nf3 {[%clk 0:02:59.4]} 3... d5 {[%clk 0:02:58.6]}
4. Nc3 {[%clk 0:02:58.8]} 4... c6 {[%clk 0:02:58.9]} 5. Qb3 {[%clk 0:02:57.3]}
5... Nbd7 {[%clk 0:02:55.1]} 6. Bg5 {[%clk 0:02:56.4]} 6... h6 {[%clk
0:02:53.1]} 7. Bh4 {[%clk 0:02:56]} 7... Bd6 {[%clk 0:02:45.1]} 8. e3 {[%clk
0:02:54.2]} 8... O-O {[%clk 0:02:44]} 9. g4 {[%clk 0:02:51.6]} 9... Qa5 {[%clk
0:02:36.9]} 10. g5 {[%clk 0:02:41.5]} 10... hxg5 {[%clk 0:02:36.3]} 11. Bxg5
{[%clk 0:02:41.9]} 11... Ne4 {[%clk 0:02:35.9]} 12. Rg1 {[%clk 0:02:38.1]} 12...
f5 {[%clk 0:01:21.3]} 13. Bd3 {[%clk 0:02:27.2]} 13... Ndf6 {[%clk 0:01:20.5]}
14. c5 {[%clk 0:02:20.7]} 14... Bc7 {[%clk 0:01:15.7]} 15. Bf4 {[%clk
0:02:18.7]} 15... Bxf4 {[%clk 0:01:12.6]} 16. exf4 {[%clk 0:02:19.6]} 16... b6
{[%clk 0:01:06]} 17. Ne5 {[%clk 0:02:01.2]} 17... bxc5 {[%clk 0:01:04.4]} 18.
Bxe4 {[%clk 0:02:01]} 18... fxe4 {[%clk 0:01:00]} 19. O-O-O {[%clk 0:01:51.1]}
19... cxd4 {[%clk 0:00:59.5]} 20. Nxc6 {[%clk 0:01:50.9]} 20... Qc7 {[%clk
0:00:57.8]} 21. Nxd4 {[%clk 0:01:46.3]} 21... Qxf4+ {[%clk 0:00:57.9]} 22. Kb1
{[%clk 0:01:46.7]} 22... Rb8 {[%clk 0:00:57.7]} 23. Qa3 {[%clk 0:01:38.8]} 23...
Bd7 {[%clk 0:00:49.4]} 24. Rg2 {[%clk 0:01:11.1]} 24... Rb7 {[%clk 0:00:33.8]}
25. Rdg1 {[%clk 0:01:07.1]} 25... Bc8 {[%clk 0:00:33.9]} 26. Nc6 {[%clk
0:00:57.4]} 26... Qc7 {[%clk 0:00:29]} 27. Na5 {[%clk 0:00:32.8]} 27... Rb6
{[%clk 0:00:22.7]} 28. Rxg7+ {[%clk 0:00:21.9]} 28... Qxg7 {[%clk 0:00:23.6]}
29. Rxg7+ {[%clk 0:00:21.9]} 29... Kxg7 {[%clk 0:00:24.2]} 30. Qc5 {[%clk
0:00:22.2]} 30... Bd7 {[%clk 0:00:14.7]} 31. Qc7 {[%clk 0:00:21.9]} 31... Rfb8
{[%clk 0:00:09.6]} 32. Nb3 {[%clk 0:00:20.1]} 32... R8b7 {[%clk 0:00:07.1]} 33.
Qe5 {[%clk 0:00:20.1]} 33... Kf7 {[%clk 0:00:06.9]} 34. Ne2 {[%clk 0:00:19.4]}
34... a5 {[%clk 0:00:06.6]} 35. Ka1 {[%clk 0:00:11.5]} 35... a4 {[%clk
0:00:06.3]} 36. Nc5 {[%clk 0:00:11.8]} 36... Rb8 {[%clk 0:00:05.4]} 37. Qf4
{[%clk 0:00:09.1]} 37... Rxb2 {[%clk 0:00:03.5]} 38. Nc3 {[%clk 0:00:08.3]}
38... Ke7 {[%clk 0:00:04]} 39. Qg5 {[%clk 0:00:08.2]} 39... Rc2 {[%clk
0:00:03.5]} 40. Nxd7 {[%clk 0:00:05.7]} 40... Kxd7 {[%clk 0:00:04.4]} 41. Qe3
{[%clk 0:00:04.4]} 41... Ng4 {[%clk 0:00:04.1]} 42. Qf4 {[%clk 0:00:03.2]} 42...
Kc8 {[%clk 0:00:02.5]} 43. Qf8+ {[%clk 0:00:02.5]} 43... Kb7 {[%clk 0:00:03]}
44. Qb4+ {[%clk 0:00:02.7]} 44... Kc8 {[%clk 0:00:03.5]} 45. Qc5+ {[%clk
0:00:03]} 45... Kd7 {[%clk 0:00:03.4]} 46. Qa3 {[%clk 0:00:01]} 46... Nxf2
{[%clk 0:00:03]} 47. Qxa4+ {[%clk 0:00:01.5]} 47... Kd6 {[%clk 0:00:03.3]} 48.
Qxc2 {[%clk 0:00:02.4]} 48... Nd3 {[%clk 0:00:03.6]} 49. Qd2 {[%clk 0:00:02.8]}
49... Ke5 {[%clk 0:00:03.8]} 50. Qe3 {[%clk 0:00:03]} 50... Rc8 {[%clk
0:00:03.5]} 51. Qg3+ {[%clk 0:00:03.9]} 51... Kd4 {[%clk 0:00:04]} 52. Ne2+
{[%clk 0:00:04.8]} 52... Kc4 {[%clk 0:00:04.6]} 53. Qe3 {[%clk 0:00:04.6]} 53...
Kb5 {[%clk 0:00:04.2]} 54. Qd4 {[%clk 0:00:04.8]} 54... Rc4 {[%clk 0:00:04.2]}
55. Qe3 {[%clk 0:00:05]} 55... e5 {[%clk 0:00:04.4]} 56. Qd2 {[%clk 0:00:05.1]}
56... d4 {[%clk 0:00:04.3]} 57. a3 {[%clk 0:00:05.5]} 57... Kc5 {[%clk
0:00:04.5]} 58. Qd1 {[%clk 0:00:05.1]} 58... Kd5 {[%clk 0:00:04.4]} 59. Qb3
{[%clk 0:00:05]} 59... Nc5 {[%clk 0:00:04.9]} 60. Qa2 {[%clk 0:00:04.8]} 60...
e3 {[%clk 0:00:05.3]} 61. Nc1 {[%clk 0:00:04]} 61... d3 {[%clk 0:00:05.6]} 62.
Nxd3 {[%clk 0:00:01.9]} 62... Nxd3 {[%clk 0:00:06.5]} 63. Qg2+ {[%clk
0:00:02.1]} 63... Kd4 {[%clk 0:00:06.8]} 64. Qg4+ {[%clk 0:00:01.4]} 64... Kc3
{[%clk 0:00:07.3]} 0-1

[Event "*** SCC Grand Prix: Titled Tuesday Blitz"]
[Site "Chess.com"]
[Date "2020.06.23"]
[Round "8"]
[White "RaunakSadhwani2005"]
[Black "Alexander_Donchenko"]
[Result "1/2-1/2"]
[WhiteElo "2876"]
[BlackElo "2683"]
[TimeControl "180+1"]
[EndTime "11:36:44 PDT"]
[Termination "Game drawn by repetition"]

1. e4 {[%clk 0:03:00.7]} 1... c6 {[%clk 0:02:59.4]} 2. Nf3 {[%clk 0:03:00.8]}
2... d5 {[%clk 0:03:00.3]} 3. d3 {[%clk 0:03:01.3]} 3... dxe4 {[%clk 0:02:59.8]}
4. dxe4 {[%clk 0:03:02.2]} 4... Qxd1+ {[%clk 0:03:00.2]} 5. Kxd1 {[%clk
0:03:03.1]} 5... Nf6 {[%clk 0:03:00.6]} 6. Nbd2 {[%clk 0:03:02.9]} 6... Bg4
{[%clk 0:02:59.7]} 7. Be2 {[%clk 0:03:01.1]} 7... Nbd7 {[%clk 0:02:59.1]} 8. Ne1
{[%clk 0:03:00.6]} 8... Bxe2+ {[%clk 0:02:57.1]} 9. Kxe2 {[%clk 0:03:01.5]} 9...
e6 {[%clk 0:02:54]} 10. Nd3 {[%clk 0:02:58.7]} 10... Nc5 {[%clk 0:02:52.9]} 11.
f3 {[%clk 0:02:57.9]} 11... Nxd3 {[%clk 0:02:52.6]} 12. cxd3 {[%clk 0:02:58.8]}
12... c5 {[%clk 0:02:44.6]} 13. Nc4 {[%clk 0:02:52.9]} 13... Be7 {[%clk
0:02:40.8]} 14. Be3 {[%clk 0:02:53.4]} 14... Nd7 {[%clk 0:02:37.7]} 15. Rhc1
{[%clk 0:02:53.7]} 15... O-O {[%clk 0:02:32.9]} 16. a3 {[%clk 0:02:53.9]} 16...
Rfc8 {[%clk 0:02:31.2]} 17. Rab1 {[%clk 0:02:53.3]} 17... Kf8 {[%clk 0:02:26.1]}
18. b4 {[%clk 0:02:50.4]} 18... cxb4 {[%clk 0:02:26.2]} 19. axb4 {[%clk
0:02:51.3]} 19... b5 {[%clk 0:02:26.7]} 20. Na5 {[%clk 0:02:51.3]} 20... Rxc1
{[%clk 0:02:20.7]} 21. Rxc1 {[%clk 0:02:36.9]} 21... Bxb4 {[%clk 0:02:20.3]} 22.
Nc6 {[%clk 0:02:36.8]} 22... Ba3 {[%clk 0:02:20.8]} 23. Ra1 {[%clk 0:02:28.7]}
23... Bc5 {[%clk 0:02:17.9]} 24. Nxa7 {[%clk 0:02:04.8]} 24... Bxe3 {[%clk
0:02:14.2]} 25. Kxe3 {[%clk 0:02:05.7]} 25... e5 {[%clk 0:02:14.5]} 26. d4
{[%clk 0:01:59.4]} 26... exd4+ {[%clk 0:02:14.1]} 27. Kxd4 {[%clk 0:02:00.3]}
27... Nf6 {[%clk 0:02:10.9]} 28. Kc5 {[%clk 0:01:57.7]} 28... g5 {[%clk
0:01:53.2]} 29. Ra2 {[%clk 0:01:22.8]} 29... Rb8 {[%clk 0:01:39.1]} 30. Nxb5
{[%clk 0:01:19.8]} 30... Nd7+ {[%clk 0:01:36.1]} 31. Kb4 {[%clk 0:01:13.5]}
31... Ne5 {[%clk 0:01:34.6]} 32. Rd2 {[%clk 0:01:03.2]} 32... Ke7 {[%clk
0:01:25.5]} 33. Kc5 {[%clk 0:00:41.7]} 33... Rc8+ {[%clk 0:01:24.6]} 34. Kd4
{[%clk 0:00:33.7]} 34... Rd8+ {[%clk 0:01:24.6]} 35. Kc3 {[%clk 0:00:33.7]}
35... Rc8+ {[%clk 0:01:24.7]} 36. Kb3 {[%clk 0:00:33.5]} 36... Rb8 {[%clk
0:01:24.2]} 37. Ka4 {[%clk 0:00:32.9]} 37... Ra8+ {[%clk 0:01:21.7]} 38. Kb4
{[%clk 0:00:32.9]} 38... Rb8 {[%clk 0:01:21.8]} 39. Rd5 {[%clk 0:00:29.9]} 39...
f6 {[%clk 0:01:20.4]} 40. Kc3 {[%clk 0:00:29.2]} 40... Ra8 {[%clk 0:01:14.1]}
41. Rd2 {[%clk 0:00:28]} 41... Rc8+ {[%clk 0:01:12.8]} 42. Kb3 {[%clk
0:00:27.9]} 42... Rb8 {[%clk 0:01:13.1]} 43. Kb4 {[%clk 0:00:27.5]} 43... h5
{[%clk 0:01:07.5]} 44. Kc5 {[%clk 0:00:26.4]} 44... Rc8+ {[%clk 0:01:06.8]} 45.
Kb4 {[%clk 0:00:26.5]} 45... Rb8 {[%clk 0:01:06.8]} 46. Rd5 {[%clk 0:00:22.9]}
46... h4 {[%clk 0:01:03.1]} 47. Kc3 {[%clk 0:00:22.8]} 47... h3 {[%clk
0:00:59.7]} 48. gxh3 {[%clk 0:00:20.7]} 48... Nxf3 {[%clk 0:01:00.2]} 49. Nd4
{[%clk 0:00:19.9]} 49... Nxd4 {[%clk 0:00:55.6]} 50. Rxd4 {[%clk 0:00:20.2]}
50... Ke6 {[%clk 0:00:54.8]} 51. Rd5 {[%clk 0:00:14.5]} 51... Rh8 {[%clk
0:00:54]} 52. Rd3 {[%clk 0:00:13.5]} 52... Ke5 {[%clk 0:00:53.3]} 53. Rf3 {[%clk
0:00:13.8]} 53... Rd8 {[%clk 0:00:28.8]} 54. Rf5+ {[%clk 0:00:12.5]} 54... Ke6
{[%clk 0:00:29.4]} 55. Rf3 {[%clk 0:00:11.3]} 55... Rd1 {[%clk 0:00:29.2]} 56.
Rd3 {[%clk 0:00:10.7]} 56... Rh1 {[%clk 0:00:25.9]} 57. Rf3 {[%clk 0:00:10.4]}
57... Rxh2 {[%clk 0:00:23.3]} 58. Kd4 {[%clk 0:00:10.6]} 58... Ra2 {[%clk
0:00:21.2]} 59. Rb3 {[%clk 0:00:05.2]} 59... Rh2 {[%clk 0:00:16.6]} 60. Ra3
{[%clk 0:00:04.4]} 60... Kf7 {[%clk 0:00:15.9]} 61. Rb3 {[%clk 0:00:03.8]} 61...
Kg6 {[%clk 0:00:16.1]} 62. Kd5 {[%clk 0:00:04.2]} 62... Rd2+ {[%clk 0:00:11.4]}
63. Ke6 {[%clk 0:00:04.5]} 63... Re2 {[%clk 0:00:11.9]} 64. Kd5 {[%clk
0:00:03.7]} 64... Rd2+ {[%clk 0:00:03.7]} 65. Ke6 {[%clk 0:00:03.7]} 65... Re2
{[%clk 0:00:04]} 66. Kd5 {[%clk 0:00:04.1]} 66... Rd2+ {[%clk 0:00:04.2]}
1/2-1/2